[Event "Fast Chess"]
[Site "ChessKid.com"]
[Date "2020.04.14"]
[Round "1"]
[White "Georgiev, Maximilian"]
[Black "Hlinka, Patrick"]
[Result "1-0"]
[ECO "C41"]
[WhiteElo "1363"]
[BlackElo "1086"]
[PlyCount "117"]
[EventDate "2020.??.??"]
[TimeControl "300+50"]
[WhiteClock "0:03:50"]
[BlackClock "0:06:14"]

1. e4 {[%emt 0:00:45]} e5 {[%emt 0:00:47]} 2. Nf3 {[%emt 0:00:46]} d6 {[%emt 0:
00:49]} 3. Bc4 {[%emt 0:00:46]} Bg4 {[%emt 0:00:48]} 4. Be2 {[%emt 0:00:49]}
Bxf3 {[%emt 0:00:50]} 5. Bxf3 {[%emt 0:00:47]} c6 {[%emt 0:00:56]} 6. O-O {
[%emt 0:00:47]} d5 {[%emt 0:00:48]} 7. exd5 {[%emt 0:00:47]} cxd5 {[%emt 0:00:
47]} 8. d3 {[%emt 0:00:50]} e4 {[%emt 0:00:47]} 9. dxe4 {[%emt 0:00:47]} dxe4 {
[%emt 0:00:47]} 10. Qxd8+ {[%emt 0:00:47]} Kxd8 {[%emt 0:00:48]} 11. Bxe4 {
[%emt 0:00:46]} Kc8 {[%emt 0:00:51]} 12. Bf5+ {[%emt 0:00:52]} Nd7 {[%emt 0:00:
50]} 13. Rd1 {[%emt 0:00:49]} g6 {[%emt 0:00:53]} 14. Bxd7+ {[%emt 0:00:47]}
Kc7 {[%emt 0:00:53]} 15. Nc3 {[%emt 0:00:49]} Nf6 {[%emt 0:00:48]} 16. Nb5+ {
[%emt 0:00:49]} Kb6 {[%emt 0:00:48]} 17. Nc3 {[%emt 0:00:50]} Nxd7 {[%emt 0:00:
48]} 18. Rxd7 {[%emt 0:00:47]} Bc5 {[%emt 0:00:50]} 19. Rxf7 {[%emt 0:00:49]}
Bb4 {[%emt 0:00:49]} 20. Bd2 {[%emt 0:00:48]} Bxc3 {[%emt 0:00:51]} 21. Bxc3 {
[%emt 0:00:46]} Rhe8 {[%emt 0:00:49]} 22. h3 {[%emt 0:00:49]} Rad8 {[%emt 0:00:
51]} 23. Rf6+ {[%emt 0:00:54]} Kc5 {[%emt 0:00:54]} 24. Rf7 {[%emt 0:00:54]}
Kc4 {[%emt 0:00:59]} 25. Rxh7 {[%emt 0:00:49]} Re6 {[%emt 0:00:50]} 26. Rxb7 {
[%emt 0:00:48]} g5 {[%emt 0:00:55]} 27. Rxa7 {[%emt 0:00:47]} Rd5 {[%emt 0:00:
50]} 28. Ra4+ {[%emt 0:00:50]} Kb5 {[%emt 0:00:48]} 29. Rb4+ {[%emt 0:00:49]}
Kc5 {[%emt 0:00:48]} 30. Ra4 {[%emt 0:00:51]} g4 {[%emt 0:01:01]} 31. hxg4 {
[%emt 0:00:49]} Rh6 {[%emt 0:00:48]} 32. g3 {[%emt 0:00:51]} Kb5 {[%emt 0:00:
49]} 33. Rf4 {[%emt 0:00:50]} Rg6 {[%emt 0:00:54]} 34. a4+ {[%emt 0:00:49]} Ka6
{[%emt 0:00:51]} 35. a5 {[%emt 0:00:49]} Rdg5 {[%emt 0:01:08]} 36. b4 {[%emt 0:
00:53]} Rxg4 {[%emt 0:00:49]} 37. Rxg4 {[%emt 0:00:46]} Rxg4 {[%emt 0:00:47]}
38. Kg2 {[%emt 0:00:52]} Rc4 {[%emt 0:00:53]} 39. Be1 {[%emt 0:00:52]} Rc6 {
[%emt 0:00:53]} 40. g4 {[%emt 0:00:47]} Kb5 {[%emt 0:00:56]} 41. g5 {[%emt 0:
00:50]} Rg6 {[%emt 0:00:54]} 42. Bd2 {[%emt 0:00:51]} Ka6 {[%emt 0:00:51]} 43.
c4 {[%emt 0:00:51]} Re6 {[%emt 0:00:55]} 44. f4 {[%emt 0:00:50]} Re2+ {[%emt 0:
00:55]} 45. Kf3 {[%emt 0:00:47]} Rxd2 {[%emt 0:00:47]} 46. g6 {[%emt 0:00:49]}
Rd7 {[%emt 0:00:50]} 47. f5 {[%emt 0:00:48]} Rg7 {[%emt 0:00:48]} 48. b5+ {
[%emt 0:00:50]} Kb7 {[%emt 0:00:48]} 49. a6+ {[%emt 0:00:47]} Ka7 {[%emt 0:00:
47]} 50. c5 {[%emt 0:00:47]} Re7 {[%emt 0:00:52]} 51. b6+ {[%emt 0:00:48]} Ka8
{[%emt 0:00:52]} 52. b7+ {[%emt 0:00:51]} Ka7 {[%emt 0:00:53]} 53. c6 {[%emt 0:
00:50]} Rc7 {[%emt 0:00:54]} 54. f6 {[%emt 0:00:49]} Rxc6 {[%emt 0:00:55]} 55.
f7 {[%emt 0:00:46]} Rf6+ {[%emt 0:00:49]} 56. Kg4 {[%emt 0:00:47]} Rxg6+ {
[%emt 0:00:59]} 57. Kf5 {[%emt 0:00:46]} Rg7 {[%emt 0:00:57]} 58. f8=Q {
[%emt 0:00:47]} Rc7 {[%emt 0:00:48]} 59. b8=Q# {[%emt 0:00:52] TallSnazzyBall
won by checkmate} 1-0

[Event "Fast Chess"]
[Site "ChessKid.com"]
[Date "2020.04.14"]
[Round "1"]
[White "Li, Patrick"]
[Black "Li, Tobias"]
[Result "1-0"]
[ECO "C50"]
[WhiteElo "1020"]
[BlackElo "1259"]
[PlyCount "97"]
[EventDate "2020.??.??"]
[TimeControl "300+50"]
[WhiteClock "0:03:19"]
[BlackClock "0:03:25"]

1. e4 {[%emt 0:00:48]} e5 {[%emt 0:00:47]} 2. Nf3 {[%emt 0:00:46]} Nc6 {
[%emt 0:00:46]} 3. Nc3 {[%emt 0:00:46]} Bc5 {[%emt 0:00:47]} 4. Bc4 {[%emt 0:
00:47]} h6 {[%emt 0:00:48]} 5. O-O {[%emt 0:00:46]} Nf6 {[%emt 0:00:46]} 6. h3
{[%emt 0:00:47]} O-O {[%emt 0:00:46]} 7. Bb5 {[%emt 0:00:50]} a6 {[%emt 0:00:
48]} 8. Bc4 {[%emt 0:00:49]} b5 {[%emt 0:00:46]} 9. Bd5 {[%emt 0:00:49]} Nxd5 {
[%emt 0:00:48]} 10. exd5 {[%emt 0:00:47]} Nb4 {[%emt 0:00:47]} 11. Nxe5 {
[%emt 0:00:49]} d6 {[%emt 0:00:50]} 12. Ng4 {[%emt 0:00:49]} Bb7 {[%emt 0:00:
49]} 13. a3 {[%emt 0:00:51]} Nxd5 {[%emt 0:00:47]} 14. Nxd5 {[%emt 0:00:52]}
Bxd5 {[%emt 0:00:47]} 15. d3 {[%emt 0:00:57]} Be6 {[%emt 0:00:58]} 16. Ne3 {
[%emt 0:00:52]} Bxe3 {[%emt 0:00:51]} 17. Bxe3 {[%emt 0:00:49]} Qf6 {[%emt 0:
00:54]} 18. c3 {[%emt 0:00:52]} Qg6 {[%emt 0:00:58]} 19. Qf3 {[%emt 0:00:57]}
Qxd3 {[%emt 0:00:54]} 20. Rfd1 {[%emt 0:00:54]} Qg6 {[%emt 0:00:53]} 21. Qc6 {
[%emt 0:00:55]} Rfc8 {[%emt 0:00:53]} 22. Qf3 {[%emt 0:00:58]} Re8 {[%emt 0:00:
54]} 23. Rd4 {[%emt 0:00:56]} Rab8 {[%emt 0:01:18]} 24. g3 {[%emt 0:00:56]}
Bxh3 {[%emt 0:00:54]} 25. Kh2 {[%emt 0:00:52]} Be6 {[%emt 0:00:54]} 26. Re4 {
[%emt 0:00:52]} Bd5 {[%emt 0:00:50]} 27. Rxe8+ {[%emt 0:00:50]} Rxe8 {[%emt 0:
00:50]} 28. Qxd5 {[%emt 0:00:46]} Qc2 {[%emt 0:01:03]} 29. Rc1 {[%emt 0:00:58]}
Qxb2 {[%emt 0:00:55]} 30. Qb7 {[%emt 0:00:54]} Rxe3 {[%emt 0:00:53]} 31. Rf1 {
[%emt 0:01:08]} Re8 {[%emt 0:00:56]} 32. Qxc7 {[%emt 0:00:48]} Qxa3 {[%emt 0:
00:50]} 33. Rd1 {[%emt 0:00:54]} Qb2 {[%emt 0:00:57]} 34. Rxd6 {[%emt 0:00:48]}
Qxf2+ {[%emt 0:00:52]} 35. Kh3 {[%emt 0:00:47]} Qf5+ {[%emt 0:00:48]} 36. Kg2 {
[%emt 0:00:48]} Qc8 {[%emt 0:00:54]} 37. Qa7 {[%emt 0:00:55]} Qxc3 {[%emt 0:00:
54]} 38. Rd7 {[%emt 0:00:52]} Qc6+ {[%emt 0:00:51]} 39. Kh3 {[%emt 0:00:54]}
Qe6+ {[%emt 0:00:47]} 40. Kh2 {[%emt 0:00:52]} Qe2+ {[%emt 0:01:13]} 41. Kh3 {
[%emt 0:00:53]} Qe6+ {[%emt 0:00:48]} 42. Kh2 {[%emt 0:00:55]} Rf8 {[%emt 0:00:
46]} 43. Kg2 {[%emt 0:00:52]} Kh7 {[%emt 0:00:54]} 44. Rb7 {[%emt 0:00:56]}
Qd5+ {[%emt 0:00:49]} 45. Kh2 {[%emt 0:00:59]} Qc6 {[%emt 0:00:52]} 46. Rxf7 {
[%emt 0:00:55]} Qe8 {[%emt 0:01:03]} 47. Rxg7+ {[%emt 0:00:57]} Kh8 {[%emt 0:
00:48]} 48. Rh7+ {[%emt 0:00:49]} Kg8 {[%emt 0:00:47]} 49. Qg7# {[%emt 0:00:48]
WideClassyQuiz won by checkmate} 1-0

[Event "Fast Chess"]
[Site "ChessKid.com"]
[Date "2020.04.14"]
[Round "1"]
[White "Sasse, Gabriel"]
[Black "Hlinka, Patricia"]
[Result "1-0"]
[ECO "B01"]
[WhiteElo "1250"]
[BlackElo "948"]
[PlyCount "59"]
[EventDate "2020.??.??"]
[TimeControl "300+50"]
[WhiteClock "0:04:06"]
[BlackClock "0:04:44"]

1. e4 {[%emt 0:00:45]} d5 {[%emt 0:00:46]} 2. exd5 {[%emt 0:00:48]} g5 {
[%emt 0:00:52]} 3. Nf3 {[%emt 0:00:52]} f6 {[%emt 0:00:48]} 4. Be2 {[%emt 0:00:
53]} h5 {[%emt 0:00:49]} 5. h3 {[%emt 0:00:51]} h4 {[%emt 0:00:48]} 6. O-O {
[%emt 0:00:53]} Bg7 {[%emt 0:00:54]} 7. b3 {[%emt 0:00:50]} c5 {[%emt 0:00:49]}
8. dxc6 {[%emt 0:00:49]} bxc6 {[%emt 0:00:47]} 9. Bb2 {[%emt 0:00:47]} a5 {
[%emt 0:00:50]} 10. Ne1 {[%emt 0:00:51]} f5 {[%emt 0:00:51]} 11. Bf3 {[%emt 0:
00:47]} Ra7 {[%emt 0:00:50]} 12. Bxc6+ {[%emt 0:00:47]} Nxc6 {[%emt 0:00:53]}
13. Nd3 {[%emt 0:00:48]} Nb8 {[%emt 0:00:51]} 14. Bxg7 {[%emt 0:00:51]} Rh7 {
[%emt 0:00:50]} 15. Bd4 {[%emt 0:00:52]} Rd7 {[%emt 0:00:55]} 16. Bc3 {[%emt 0:
00:53]} Ra7 {[%emt 0:00:55]} 17. Nc5 {[%emt 0:00:54]} Ra8 {[%emt 0:00:54]} 18.
Qf3 {[%emt 0:00:54]} Ra7 {[%emt 0:00:50]} 19. Re1 {[%emt 0:00:58]} Rf7 {
[%emt 0:00:52]} 20. Qh5 {[%emt 0:00:48]} Nh6 {[%emt 0:00:55]} 21. Qxh6 {
[%emt 0:00:51]} Nd7 {[%emt 0:01:01]} 22. Nxd7 {[%emt 0:00:48]} Bxd7 {[%emt 0:
00:47]} 23. Qxg5 {[%emt 0:00:48]} f4 {[%emt 0:00:54]} 24. Qxh4 {[%emt 0:00:52]}
Ra6 {[%emt 0:00:53]} 25. Be5 {[%emt 0:00:52]} f3 {[%emt 0:01:01]} 26. gxf3 {
[%emt 0:00:49]} Rxf3 {[%emt 0:00:52]} 27. Bd4 {[%emt 0:00:57]} Rxb3 {[%emt 0:
00:53]} 28. cxb3 {[%emt 0:00:49]} Ra8 {[%emt 0:00:55]} 29. Qg5 {[%emt 0:00:50]}
Rc8 {[%emt 0:00:49]} 30. Qg8# {[%emt 0:00:47] LimeFarActor won by checkmate}
1-0

[Event "Fast Chess"]
[Site "ChessKid.com"]
[Date "2020.04.14"]
[Round "2"]
[White "Li, Patrick"]
[Black "Georgiev, Maximilian"]
[Result "0-1"]
[ECO "B01"]
[WhiteElo "1018"]
[BlackElo "1365"]
[PlyCount "54"]
[EventDate "2020.??.??"]
[TimeControl "300+50"]
[WhiteClock "0:05:33"]
[BlackClock "0:03:53"]

1. e4 {[%emt 0:00:50]} d5 {[%emt 0:00:47]} 2. f3 {[%emt 0:00:50]} dxe4 {
[%emt 0:00:47]} 3. fxe4 {[%emt 0:00:48]} Nc6 {[%emt 0:00:46]} 4. Nf3 {[%emt 0:
00:48]} Nf6 {[%emt 0:00:48]} 5. Nc3 {[%emt 0:00:48]} Bg4 {[%emt 0:00:48]} 6. d3
{[%emt 0:00:51]} e6 {[%emt 0:00:50]} 7. Bf4 {[%emt 0:00:48]} Bb4 {[%emt 0:00:
50]} 8. a3 {[%emt 0:00:52]} Ba5 {[%emt 0:00:47]} 9. b4 {[%emt 0:00:52]} Bb6 {
[%emt 0:00:47]} 10. b5 {[%emt 0:00:49]} Bd4 {[%emt 0:00:51]} 11. bxc6 {[%emt 0:
00:57]} Bxc3+ {[%emt 0:00:47]} 12. Ke2 {[%emt 0:00:51]} Bxa1 {[%emt 0:00:47]}
13. Qxa1 {[%emt 0:00:49]} bxc6 {[%emt 0:00:48]} 14. Bg5 {[%emt 0:00:52]} O-O {
[%emt 0:00:49]} 15. Bxf6 {[%emt 0:00:49]} gxf6 {[%emt 0:00:48]} 16. h3 {
[%emt 0:00:55]} Bh5 {[%emt 0:00:48]} 17. Kf2 {[%emt 0:00:59]} f5 {[%emt 0:00:
50]} 18. exf5 {[%emt 0:00:59]} exf5 {[%emt 0:00:46]} 19. h4 {[%emt 0:01:09]}
Qd6 {[%emt 0:00:53]} 20. Ng5 {[%emt 0:00:54]} Qc5+ {[%emt 0:00:53]} 21. Kg3 {
[%emt 0:01:01]} f4+ {[%emt 0:00:48]} 22. Kxf4 {[%emt 0:00:48]} f6 {[%emt 0:00:
52]} 23. Ne6 {[%emt 0:00:48]} Qe7 {[%emt 0:00:51]} 24. Nxf8 {[%emt 0:00:48]}
Qxf8 {[%emt 0:00:48]} 25. Kf5 {[%emt 0:00:54]} Qc5+ {[%emt 0:00:53]} 26. Kf4 {
[%emt 0:00:56]} Qf2+ {[%emt 0:00:49]} 27. Ke4 {[%emt 0:00:56]} Bg6# {[%emt 0:
00:48] TallSnazzyBall won by checkmate} 0-1

[Event "Fast Chess"]
[Site "ChessKid.com"]
[Date "2020.04.14"]
[Round "2"]
[White "Li, Tobias"]
[Black "Sasse, Gabriel"]
[Result "0-1"]
[ECO "C50"]
[WhiteElo "1251"]
[BlackElo "1259"]
[PlyCount "37"]
[EventDate "2020.??.??"]
[TimeControl "300+50"]
[WhiteClock "0:05:36"]
[BlackClock "0:04:48"]

1. e4 {[%emt 0:00:51]} e5 {[%emt 0:00:46]} 2. Nf3 {[%emt 0:00:47]} Nc6 {
[%emt 0:00:46]} 3. Nc3 {[%emt 0:00:47]} Nf6 {[%emt 0:00:46]} 4. Bc4 {[%emt 0:
00:48]} h6 {[%emt 0:00:46]} 5. d3 {[%emt 0:00:48]} Bc5 {[%emt 0:00:47]} 6. h3 {
[%emt 0:00:52]} d6 {[%emt 0:00:46]} 7. O-O {[%emt 0:00:46]} O-O {[%emt 0:00:46]
} 8. Bxh6 {[%emt 0:00:52]} gxh6 {[%emt 0:00:48]} 9. Nh4 {[%emt 0:00:46]} Ne8 {
[%emt 0:00:51]} 10. Qd2 {[%emt 0:00:49]} Qxh4 {[%emt 0:00:49]} 11. Rae1 {
[%emt 0:00:53]} Kh8 {[%emt 0:00:48]} 12. g3 {[%emt 0:00:47]} Qxh3 {[%emt 0:00:
48]} 13. Qe2 {[%emt 0:00:50]} d5 {[%emt 0:00:50]} 14. exd5 {[%emt 0:00:48]} Nb4
{[%emt 0:00:47]} 15. Qf3 {[%emt 0:00:56]} Bg4 {[%emt 0:00:54]} 16. Qg2 {
[%emt 0:00:48]} Qh5 {[%emt 0:00:51]} 17. Qh2 {[%emt 0:00:59]} Qf5 {[%emt 0:00:
50]} 18. Qxh6+ {[%emt 0:00:56]} Kg8 {[%emt 0:00:47]} 19. Qf4 {[%emt 0:01:00]
LimeFarActor won by resignation} 0-1

[Event "Fast Chess"]
[Site "ChessKid.com"]
[Date "2020.04.14"]
[Round "3"]
[White "Georgiev, Maximilian"]
[Black "Sasse, Gabriel"]
[Result "1-0"]
[ECO "C57"]
[WhiteElo "1371"]
[BlackElo "1254"]
[PlyCount "121"]
[EventDate "2020.??.??"]
[TimeControl "300+50"]
[WhiteClock "0:05:32"]
[BlackClock "0:05:58"]

1. e4 {[%emt 0:00:46]} e5 {[%emt 0:00:46]} 2. Nf3 {[%emt 0:00:46]} Nc6 {
[%emt 0:00:46]} 3. Bc4 {[%emt 0:00:46]} Nf6 {[%emt 0:00:46]} 4. Ng5 {[%emt 0:
00:46]} Bc5 {[%emt 0:00:56]} 5. Nxf7 {[%emt 0:00:47]} Qe7 {[%emt 0:00:48]} 6.
Nxh8 {[%emt 0:00:47]} d6 {[%emt 0:00:47]} 7. Nc3 {[%emt 0:00:49]} Ng4 {[%emt 0:
00:46]} 8. O-O {[%emt 0:00:48]} Nxf2 {[%emt 0:00:47]} 9. Rxf2 {[%emt 0:00:46]}
Bxf2+ {[%emt 0:00:46]} 10. Kxf2 {[%emt 0:00:46]} Qf6+ {[%emt 0:00:48]} 11. Kg1
{[%emt 0:00:47]} Nd4 {[%emt 0:00:57]} 12. d3 {[%emt 0:00:50]} Qh4 {[%emt 0:00:
58]} 13. g3 {[%emt 0:00:49]} Qh3 {[%emt 0:00:47]} 14. Be3 {[%emt 0:00:54]} Bg4
{[%emt 0:00:47]} 15. Qc1 {[%emt 0:00:53]} Bf3 {[%emt 0:00:48]} 16. Qd2 {
[%emt 0:00:49]} Nc6 {[%emt 0:00:52]} 17. Nd5 {[%emt 0:00:53]} Kd7 {[%emt 0:00:
48]} 18. Qf2 {[%emt 0:00:54]} Bg4 {[%emt 0:00:57]} 19. Qf7+ {[%emt 0:00:50]}
Ne7 {[%emt 0:00:59]} 20. Qxe7+ {[%emt 0:00:49]} Kc6 {[%emt 0:00:47]} 21. Qf7 {
[%emt 0:00:58]} Rxh8 {[%emt 0:00:52]} 22. Qf1 {[%emt 0:00:50]} Qh5 {[%emt 0:00:
51]} 23. Nb4+ {[%emt 0:00:53]} Kd7 {[%emt 0:00:51]} 24. Re1 {[%emt 0:00:52]}
Ke7 {[%emt 0:00:56]} 25. d4 {[%emt 0:00:47]} Rf8 {[%emt 0:00:47]} 26. Qd3 {
[%emt 0:00:50]} exd4 {[%emt 0:00:54]} 27. Bxd4 {[%emt 0:00:47]} Rf3 {[%emt 0:
00:51]} 28. Qd2 {[%emt 0:00:51]} Rf8 {[%emt 0:01:00]} 29. e5 {[%emt 0:00:47]}
dxe5 {[%emt 0:00:49]} 30. Rxe5+ {[%emt 0:00:47]} Qxe5 {[%emt 0:00:47]} 31. Bxe5
{[%emt 0:00:47]} Ke8 {[%emt 0:00:53]} 32. Bxg7 {[%emt 0:00:48]} Rf3 {[%emt 0:
00:49]} 33. Qe2+ {[%emt 0:00:52]} Kd8 {[%emt 0:00:50]} 34. Qe1 {[%emt 0:00:57]}
Rf5 {[%emt 0:00:56]} 35. Be6 {[%emt 0:00:51]} Rg5 {[%emt 0:00:48]} 36. Bxg4 {
[%emt 0:00:47]} Rxg4 {[%emt 0:00:46]} 37. Qd1+ {[%emt 0:00:51]} Ke7 {[%emt 0:
00:48]} 38. Qxg4 {[%emt 0:00:46]} Kf7 {[%emt 0:00:48]} 39. Bd4 {[%emt 0:00:49]}
c5 {[%emt 0:00:51]} 40. Bxc5 {[%emt 0:00:47]} b6 {[%emt 0:00:47]} 41. Bd6 {
[%emt 0:00:47]} a5 {[%emt 0:00:48]} 42. Nc6 {[%emt 0:00:48]} b5 {[%emt 0:00:47]
} 43. Qf5+ {[%emt 0:00:49]} Kg7 {[%emt 0:00:52]} 44. Be5+ {[%emt 0:00:47]} Kh6
{[%emt 0:00:48]} 45. Bf4+ {[%emt 0:00:50]} Kg7 {[%emt 0:00:47]} 46. Qg5+ {
[%emt 0:00:52]} Kf7 {[%emt 0:00:48]} 47. Ne5+ {[%emt 0:00:52]} Ke6 {[%emt 0:00:
49]} 48. Qg4+ {[%emt 0:00:53]} Kf6 {[%emt 0:00:47]} 49. Nd7+ {[%emt 0:00:51]}
Ke7 {[%emt 0:00:49]} 50. Nc5 {[%emt 0:00:50]} Kf6 {[%emt 0:00:48]} 51. Qg5+ {
[%emt 0:00:48]} Kf7 {[%emt 0:00:48]} 52. Kf2 {[%emt 0:00:47]} h6 {[%emt 0:00:
50]} 53. Qxh6 {[%emt 0:00:47]} a4 {[%emt 0:00:47]} 54. Ke3 {[%emt 0:00:47]} a3
{[%emt 0:00:47]} 55. bxa3 {[%emt 0:00:47]} b4 {[%emt 0:00:47]} 56. axb4 {
[%emt 0:00:47]} Ke7 {[%emt 0:00:48]} 57. Ke4 {[%emt 0:00:48]} Kf7 {[%emt 0:00:
47]} 58. Ke5 {[%emt 0:00:48]} Ke8 {[%emt 0:00:48]} 59. Qh7 {[%emt 0:00:48]} Kd8
{[%emt 0:00:47]} 60. Ke6 {[%emt 0:00:48]} Kc8 {[%emt 0:00:48]} 61. Qd7# {
[%emt 0:00:47] TallSnazzyBall won by checkmate} 1-0

[Event "Fast Chess"]
[Site "ChessKid.com"]
[Date "2020.04.14"]
[Round "3"]
[White "Hlinka, Patrick"]
[Black "Li, Patrick"]
[Result "1-0"]
[ECO "C24"]
[WhiteElo "1098"]
[BlackElo "1012"]
[PlyCount "93"]
[EventDate "2020.??.??"]
[TimeControl "300+50"]
[WhiteClock "0:04:11"]
[BlackClock "0:04:42"]

1. e4 {[%emt 0:00:45]} e5 {[%emt 0:00:47]} 2. Bc4 {[%emt 0:00:49]} Nf6 {
[%emt 0:00:50]} 3. d3 {[%emt 0:00:47]} Nc6 {[%emt 0:00:48]} 4. Bg5 {[%emt 0:00:
49]} Bb4+ {[%emt 0:00:52]} 5. c3 {[%emt 0:00:49]} Bc5 {[%emt 0:00:51]} 6. Bxf6
{[%emt 0:00:50]} Qxf6 {[%emt 0:00:50]} 7. Nh3 {[%emt 0:00:51]} d6 {[%emt 0:00:
49]} 8. Rf1 {[%emt 0:00:52]} Bxh3 {[%emt 0:00:50]} 9. gxh3 {[%emt 0:00:49]} O-O
{[%emt 0:00:54]} 10. f4 {[%emt 0:00:47]} Qh4+ {[%emt 0:00:53]} 11. Kd2 {
[%emt 0:00:51]} Qxh3 {[%emt 0:00:48]} 12. fxe5 {[%emt 0:00:51]} Nxe5 {[%emt 0:
00:48]} 13. Rf5 {[%emt 0:01:07]} Nf3+ {[%emt 0:00:50]} 14. Rxf3 {[%emt 0:00:51]
} Qxh2+ {[%emt 0:00:52]} 15. Qe2 {[%emt 0:00:52]} Qxe2+ {[%emt 0:00:53]} 16.
Kxe2 {[%emt 0:00:52]} h6 {[%emt 0:00:59]} 17. d4 {[%emt 0:00:50]} g6 {[%emt 0:
00:51]} 18. dxc5 {[%emt 0:00:48]} dxc5 {[%emt 0:00:48]} 19. b4 {[%emt 0:00:50]}
cxb4 {[%emt 0:00:48]} 20. cxb4 {[%emt 0:00:48]} Rfd8 {[%emt 0:00:51]} 21. Rxf7
{[%emt 0:00:49]} Rd4 {[%emt 0:00:52]} 22. Na3 {[%emt 0:00:53]} a6 {[%emt 0:00:
56]} 23. Rd7+ {[%emt 0:00:56]} Kf8 {[%emt 0:01:01]} 24. Rxd4 {[%emt 0:00:48]}
b5 {[%emt 0:00:48]} 25. Bd5 {[%emt 0:00:56]} Rd8 {[%emt 0:00:54]} 26. Rf1+ {
[%emt 0:00:50]} Kg7 {[%emt 0:00:49]} 27. Ke3 {[%emt 0:00:58]} c6 {[%emt 0:00:
50]} 28. Bg8 {[%emt 0:01:01]} Rxg8 {[%emt 0:00:56]} 29. e5 {[%emt 0:00:52]} Rf8
{[%emt 0:00:49]} 30. Rxf8 {[%emt 0:00:51]} Kxf8 {[%emt 0:00:48]} 31. Re4 {
[%emt 0:00:50]} g5 {[%emt 0:00:50]} 32. e6 {[%emt 0:00:48]} Ke8 {[%emt 0:00:50]
} 33. Rg4 {[%emt 0:00:53]} Ke7 {[%emt 0:01:02]} 34. Re4 {[%emt 0:00:53]} h5 {
[%emt 0:00:53]} 35. Re5 {[%emt 0:00:48]} g4 {[%emt 0:00:55]} 36. Rxh5 {[%emt 0:
00:48]} Kxe6 {[%emt 0:00:50]} 37. Nc2 {[%emt 0:00:54]} g3 {[%emt 0:00:55]} 38.
Rh1 {[%emt 0:00:48]} g2 {[%emt 0:00:48]} 39. Rg1 {[%emt 0:00:48]} c5 {[%emt 0:
00:53]} 40. bxc5 {[%emt 0:00:50]} b4 {[%emt 0:00:50]} 41. Nxb4 {[%emt 0:00:49]}
a5 {[%emt 0:00:50]} 42. Na6 {[%emt 0:00:49]} Kf5 {[%emt 0:00:50]} 43. Rxg2 {
[%emt 0:00:47]} Ke5 {[%emt 0:00:47]} 44. c6 {[%emt 0:00:46]} Kd5 {[%emt 0:00:
45]} 45. c7 {[%emt 0:00:47]} Kd6 {[%emt 0:00:47]} 46. c8=Q {[%emt 0:00:47]} Kd5
{[%emt 0:00:49]} 47. Rg4 {[%emt 0:00:47] GoldMusicalTaxi won by resignation}
1-0

[Event "Fast Chess"]
[Site "ChessKid.com"]
[Date "2020.04.15"]
[Round "1"]
[White "Georgiev, Maximilian"]
[Black "Gross, Lukas"]
[Result "0-1"]
[ECO "B06"]
[WhiteElo "1365"]
[BlackElo "1145"]
[PlyCount "50"]
[EventDate "2020.??.??"]
[TimeControl "900"]
[WhiteClock "0:12:54"]
[BlackClock "0:13:37"]

1. e4 {[%emt 0:00:00]} g6 {[%emt 0:00:01]} 2. Nf3 {[%emt 0:00:02]} Bg7 {
[%emt 0:00:01]} 3. Be2 {[%emt 0:00:01]} Nh6 {[%emt 0:00:02]} 4. O-O {[%emt 0:
00:01]} O-O {[%emt 0:00:01]} 5. Nc3 {[%emt 0:00:03]} e6 {[%emt 0:00:07]} 6. d3
{[%emt 0:00:02]} c6 {[%emt 0:00:02]} 7. a4 {[%emt 0:00:03]} d5 {[%emt 0:00:06]}
8. exd5 {[%emt 0:00:02]} cxd5 {[%emt 0:00:04]} 9. Be3 {[%emt 0:00:02]} d4 {
[%emt 0:00:05]} 10. Bd2 {[%emt 0:00:03]} dxc3 {[%emt 0:00:02]} 11. bxc3 {
[%emt 0:00:03]} a6 {[%emt 0:00:05]} 12. a5 {[%emt 0:00:03]} b5 {[%emt 0:00:09]}
13. c4 {[%emt 0:00:03]} bxc4 {[%emt 0:00:03]} 14. dxc4 {[%emt 0:00:01]} Bxa1 {
[%emt 0:00:07]} 15. Qxa1 {[%emt 0:00:03]} Nf5 {[%emt 0:00:11]} 16. Qe5 {
[%emt 0:00:07]} Nc6 {[%emt 0:00:08]} 17. Qc3 {[%emt 0:00:03]} Nfd4 {[%emt 0:00:
05]} 18. Nxd4 {[%emt 0:00:04]} Nxd4 {[%emt 0:00:02]} 19. Bd3 {[%emt 0:00:06]}
e5 {[%emt 0:00:06]} 20. Re1 {[%emt 0:00:04]} f6 {[%emt 0:00:04]} 21. Be4 {
[%emt 0:00:06]} Rb8 {[%emt 0:00:04]} 22. Be3 {[%emt 0:00:05]} Bb7 {[%emt 0:00:
12]} 23. Bd3 {[%emt 0:00:06]} Qc8 {[%emt 0:00:11]} 24. Bh6 {[%emt 0:00:07]} Qc6
{[%emt 0:00:05]} 25. Bxf8 {[%emt 0:00:03]} Qxg2# {[%emt 0:00:03]
RosyPopularArm won by checkmate} 0-1

[Event "Fast Chess"]
[Site "ChessKid.com"]
[Date "2020.04.15"]
[Round "1"]
[White "Hlinka, Patrick"]
[Black "Li, Tobias"]
[Result "0-1"]
[ECO "C20"]
[WhiteElo "1094"]
[BlackElo "1258"]
[PlyCount "60"]
[EventDate "2020.??.??"]
[TimeControl "900"]
[WhiteClock "0:11:56"]
[BlackClock "0:10:46"]

1. e4 {[%emt 0:00:01]} e5 {[%emt 0:00:02]} 2. Bc4 {[%emt 0:00:01]} Nc6 {
[%emt 0:00:04]} 3. Qh5 {[%emt 0:00:02]} g6 {[%emt 0:00:02]} 4. Qf3 {[%emt 0:00:
02]} Nf6 {[%emt 0:00:02]} 5. d3 {[%emt 0:00:03]} Nd4 {[%emt 0:00:02]} 6. Qd1 {
[%emt 0:00:10]} Be7 {[%emt 0:00:06]} 7. Bg5 {[%emt 0:00:03]} O-O {[%emt 0:00:
01]} 8. c3 {[%emt 0:00:07]} Nc6 {[%emt 0:00:03]} 9. Bxf6 {[%emt 0:00:06]} Bxf6
{[%emt 0:00:01]} 10. Nf3 {[%emt 0:00:22]} Re8 {[%emt 0:00:09]} 11. d4 {[%emt 0:
00:04]} d6 {[%emt 0:00:22]} 12. d5 {[%emt 0:00:16]} Na5 {[%emt 0:00:04]} 13.
Bb5 {[%emt 0:00:03]} c6 {[%emt 0:00:04]} 14. dxc6 {[%emt 0:00:03]} bxc6 {
[%emt 0:00:02]} 15. Ba4 {[%emt 0:00:05]} Bd7 {[%emt 0:00:13]} 16. b4 {[%emt 0:
00:03]} Nb7 {[%emt 0:00:04]} 17. O-O {[%emt 0:00:21]} d5 {[%emt 0:00:16]} 18.
exd5 {[%emt 0:00:07]} cxd5 {[%emt 0:00:03]} 19. Qxd5 {[%emt 0:00:03]} Bxa4 {
[%emt 0:00:02]} 20. Qxb7 {[%emt 0:00:09]} Re7 {[%emt 0:00:15]} 21. Qa6 {
[%emt 0:00:14]} Be8 {[%emt 0:00:11]} 22. Qxf6 {[%emt 0:00:04]} Rd7 {[%emt 0:00:
05]} 23. Qc6 {[%emt 0:00:17]} Rd1 {[%emt 0:00:02]} 24. Qe4 {[%emt 0:00:26]} Bb5
{[%emt 0:00:21]} 25. Rxd1 {[%emt 0:00:10]} Qxd1+ {[%emt 0:00:04]} 26. Ne1 {
[%emt 0:00:02]} Be2 {[%emt 0:00:07]} 27. Qxa8+ {[%emt 0:00:13]} Kg7 {[%emt 0:
00:02]} 28. Nd2 {[%emt 0:00:20]} Qxa1 {[%emt 0:00:07]} 29. Qxa7 {[%emt 0:00:10]
} Qxe1+ {[%emt 0:00:05]} 30. Nf1 {[%emt 0:00:08]} Qxf1# {[%emt 0:00:05]
OnlyHungryKiwi won by checkmate} 0-1